bitfinex-derivatives/quotes_ETHF0:USTF0_20250702
["timestamp","ask_amount","ask_price","bid_price","bid_amount"]
[1751488237849,0.76894,2599.3,2599.2,1.78310269]
[1751488238242,36.754,2599.4,2598.6,1.7572]
[1751488238443,0.76909,2598.8,2598.7,2.69720269]
[1751488238650,0.76909,2598.8,2598.7,2.5024]
[1751488238951,0.76909,2598.8,2598.7,2.69722269]
[1751488239152,0.76909,2598.9,2598.8,0.76907]
[1751488239351,0.76909,2598.9,2598.8,2.69717269]
[1751488243356,37.50806,2599.0,2598.9,0.76906]
[1751488243556,37.50806,2599.0,2598.9,1.82450269]
[1751488244055,37.50806,2599.0,2598.9,2.59356269]
[1751488244457,36.739,2599.0,2598.9,2.59356269]
[1751488244653,3.306,2599.4,2598.9,1.82450269]
[1751488244853,2.29695319,2600.0,2599.4,1.92226]
[1751488245053,1.03692241,2599.9,2599.8,0.7688]
[1751488245251,1.03692241,2599.9,2599.8,0.96360269]
[1751488245557,12.22271,2600.1,2600.0,0.76874]
[1751488245857,0.76864,2600.4,2600.3,0.76863]
[1751488246250,1.8054171,2600.4,2600.3,0.76863]
[1751488246650,1.0367771,2600.4,2600.3,0.96343269]
[1751488247154,1.0367771,2600.4,2600.3,2.66373269]
[1751488247349,0.76849,2600.9,2600.3,3.81668269]
[1751488247555,1.03655804,2600.8,2600.7,0.76853]
[1751488247758,11.453,2601.1,2601.0,0.76844]
[1751488247957,1.03641728,2601.1,2601.0,0.96324269]
[1751488248151,11.453,2601.7,2601.0,0.19480269]
[1751488248351,11.453,2601.7,2600.7,3.60069]
[1751488248352,1.03583813,2601.6,2601.2,0.76837]
[1751488248549,0.76835,2601.3,2601.1,0.76839]
[1751488248752,0.76845,2601.0,2600.8,0.76849]
[1751488248949,18.34783113,2601.1,2600.6,0.76855]
[1751488249161,0.76853,2600.7,2600.2,1.89510269]
[1751488249353,0.76853,2600.7,2600.5,0.76858]
[1751488249554,0.76862,2600.4,2600.3,0.19480269]
[1751488249755,0.76862,2600.4,2600.2,2.46897]
[1751488250054,11.385,2600.5,2599.6,1.644]
[1751488250256,0.76874,2600.0,2599.8,2.99698]
[1751488250460,0.76871,2600.1,2599.9,0.76874]
[1751488250658,11.385,2600.7,2600.6,0.76856]
[1751488250859,55.385,2601.2,2600.6,0.96336269]
[1751488251159,1.79912353,2601.1,2600.9,0.76845]
[1751488251361,1.03070353,2601.0,2600.9,0.76845]
[1751488251561,0.76842,2601.1,2601.0,0.19480269]
[1751488251758,1.79895357,2601.1,2601.0,0.19480269]
[1751488253363,1.79895357,2601.1,2601.0,0.96324269]
[1751488253558,1.79895357,2601.1,2601.0,0.19480269]
[1751488254156,1.03053357,2601.1,2601.0,0.96324269]
[1751488254361,55.385,2601.2,2601.1,0.76841]
[1751488254561,57.18231371,2601.2,2601.1,0.76841]
[1751488254754,55.385,2601.2,2601.1,0.76841]
[1751488254957,103.487,2601.2,2601.1,0.76841]
[1751488255558,2.29695319,2601.9,2601.1,2.11582269]
[1751488255754,0.76828,2601.6,2601.4,0.76829]
[1751488256055,37.45428,2601.6,2601.4,0.76829]
[1751488256260,36.686,2601.6,2601.2,2.1956]
[1751488256455,36.686,2601.6,2601.0,0.76844]
[1751488256662,0.7684,2601.2,2601.1,0.76841]
[1751488256860,0.76841,2601.1,2601.0,0.76844]
[1751488257057,0.76841,2601.2,2601.0,0.76844]
[1751488257261,0.7684,2601.2,2601.1,0.19480269]
[1751488257659,0.76841,2601.1,2601.0,2.96404]
[1751488257855,0.7684,2601.2,2601.1,0.96321269]
[1751488258265,0.7684,2601.2,2601.1,0.76841]
[1751488258463,0.76841,2601.1,2601.0,2.96402]
[1751488258761,0.7684,2601.2,2601.1,0.96321269]
[1751488259167,0.7684,2601.2,2601.1,0.76841]
[1751488259465,0.7684,2601.2,2601.0,2.96403]
[1751488259666,0.7684,2601.2,2601.1,0.19480269]
[1751488259868,0.76841,2601.1,2601.0,2.96403]
[1751488260365,0.76841,2601.1,2601.0,2.39040269]
[1751488261066,0.76841,2601.1,2601.0,3.15884269]
[1751488261770,0.76841,2601.1,2601.0,2.39040269]
[1751488262066,0.76841,2601.1,2601.0,0.96324269]
[1751488262266,0.76841,2601.1,2601.0,0.19480269]
[1751488262969,0.76841,2601.1,2601.0,0.96324269]
[1751488264270,0.76841,2601.1,2601.0,0.19480269]
[1751488264665,4.28512,2601.4,2601.0,0.19480269]
[1751488264970,0.76838,2601.2,2601.1,0.19480269]
[1751488265172,0.7685,2600.9,2600.8,0.76848]
[1751488265465,52.23515,2601.4,2600.6,0.19480269]
[1751488265466,1.92104,2601.1,2600.6,0.19480269]
[1751488265674,0.76871,2600.2,2600.1,0.76869]
[1751488265870,0.76871,2600.2,2600.1,0.19480269]
[1751488266068,0.76882,2599.8,2599.7,0.7688]
[1751488266269,0.76879,2599.9,2599.8,0.76878]
[1751488266670,0.76879,2599.9,2599.8,0.96360269]
[1751488266875,0.76876,2600.0,2599.9,0.76876]
[1751488267072,0.76876,2600.0,2599.9,0.96356269]
[1751488267569,0.76876,2600.0,2599.9,0.19480269]
[1751488267772,4.07152,2600.1,2599.4,4.4998]
[1751488267970,0.76888,2599.6,2599.5,0.19480269]
[1751488268171,4.07152,2600.1,2599.2,0.19480269]
[1751488268172,2.2857,2600.0,2599.2,0.19480269]
[1751488268372,2.2857,2600.0,2599.6,0.76883]
[1751488268373,0.76883,2599.7,2599.6,0.76883]
[1751488268767,2.2857,2600.0,2599.6,0.76883]
[1751488268768,0.76881,2599.8,2599.7,0.76882]
[1751488268965,0.76881,2599.8,2599.7,0.19480269]
[1751488269170,0.76883,2599.7,2599.6,0.76884]
[1751488269571,0.76883,2599.7,2599.6,0.96364269]
[1751488269775,0.76894,2599.4,2599.2,0.76895]
[1751488270078,0.76891,2599.4,2599.3,0.19480269]
[1751488270577,0.76885,2599.6,2599.5,0.76886]
[1751488270774,12.15085,2599.7,2599.6,0.76885]
[1751488271168,12.15085,2599.7,2599.6,0.19480269]
[1751488272069,12.15085,2599.7,2599.0,2.3517]
[1751488272276,12.15085,2599.7,2599.1,0.19480269]
[1751488272476,0.76893,2599.4,2599.3,0.76893]
[1751488272873,0.76893,2599.4,2599.3,0.19480269]
[1751488274278,0.76893,2599.4,2599.3,0.96374269]
[1751488274475,0.76893,2599.4,2599.3,0.19480269]
[1751488274776,0.76893,2599.4,2599.3,0.96374269]
[1751488274977,0.76893,2599.4,2599.3,0.19480269]
[1751488275370,0.76893,2599.4,2599.3,0.96374269]
[1751488275570,0.76893,2599.4,2599.3,0.19480269]
[1751488276780,0.76896,2599.3,2599.2,0.76895]
[1751488277279,0.76896,2599.3,2599.2,0.19480269]
[1751488278081,8.81592293,2599.6,2598.8,0.76907]
[1751488278280,0.7691,2598.9,2598.8,0.76907]
[1751488278481,0.76905,2599.0,2598.9,0.96384269]
[1751488278778,0.76908,2598.9,2598.8,0.76907]
[1751488279278,0.76908,2598.9,2598.8,0.96387269]
[1751488280080,0.76903,2599.1,2599.0,0.76902]
[1751488280277,0.76903,2599.0,2598.9,0.96385269]
[1751488280482,0.76905,2599.0,2598.9,0.76905]
[1751488280684,0.76903,2599.1,2599.0,0.76902]
[1751488280879,0.76903,2599.1,2599.0,0.96382269]
[1751488281476,1.922,2599.8,2599.0,2.11736269]
[1751488281678,0.76894,2599.4,2599.3,0.76892]
[1751488282084,0.76894,2599.4,2599.3,0.96372269]
[1751488282285,0.76894,2599.4,2599.3,0.19480269]
[1751488282482,6.89374293,2599.4,2598.4,2.1873]
[1751488282681,0.76909,2598.9,2598.8,1.6275]
[1751488283084,0.76909,2598.9,2598.8,1.82230269]
[1751488283280,58.24057293,2599.1,2598.3,3.6859]
[1751488283281,0.76914,2598.7,2598.3,3.6859]
[1751488283485,0.76914,2598.7,2598.6,0.76913]
[1751488283881,0.76914,2598.7,2598.6,0.19480269]
[1751488284281,0.76914,2598.7,2598.6,0.96395269]
[1751488285284,0.76911,2598.8,2598.7,0.7691]
[1751488285480,0.76911,2598.8,2598.7,1.82230269]
[1751488285881,0.76911,2598.8,2598.7,2.59142269]
[1751488286179,0.76911,2598.8,2598.7,0.19480269]
[1751488286580,0.76912,2598.7,2598.6,0.76914]
[1751488286786,0.76921,2598.5,2598.4,0.7692]
[1751488286978,0.76921,2598.5,2598.4,2.4961]
[1751488287183,0.76921,2598.5,2598.4,1.7269]
[1751488288277,47.758,2598.5,2597.9,1.9234]
[1751488288581,0.76923,2598.4,2598.0,3.84502269]
[1751488288785,47.758,2598.5,2598.0,1.7269]
[1751488288988,0.76924,2598.3,2598.2,0.76925]
[1751488289486,0.76924,2598.3,2598.2,0.19480269]
[1751488290087,0.7693,2598.1,2598.0,0.76932]
[1751488290485,1.7549,2598.7,2598.0,0.19480269]
[1751488290786,1.7549,2598.7,2598.6,0.76915]
[1751488290787,12.07113,2598.7,2598.6,0.76915]
[1751488290979,12.07113,2598.7,2598.6,0.96395269]
[1751488291383,12.07113,2598.7,2598.6,0.19480269]
[1751488291785,12.07113,2598.7,2598.6,0.96395269]
[1751488293292,12.07113,2598.7,2598.6,0.19480269]
[1751488293492,12.07113,2598.7,2598.6,0.96395269]
[1751488294587,12.07113,2598.7,2598.6,0.19480269]
[1751488296096,13.10409856,2598.7,2598.6,0.19480269]
[1751488297399,0.76925,2598.4,2598.3,0.76922]
[1751488297894,0.76925,2598.4,2598.3,0.96402269]
[1751488298197,48.53212,2598.8,2598.7,0.76908]
[1751488298397,49.56526667,2598.8,2598.7,0.76908]
[1751488298698,49.56526667,2598.8,2598.7,0.96388269]
[1751488299196,49.56526667,2598.8,2598.7,0.96392269]
[1751488300799,49.56426667,2598.8,2598.7,0.96392269]
[1751488301697,49.56426667,2598.8,2598.7,0.19480269]
[1751488302603,49.56426667,2598.8,2598.5,0.76916]
[1751488302604,0.7692,2598.6,2598.5,0.76916]
[1751488302804,0.7692,2598.6,2598.5,0.19480269]
[1751488303099,1.03314667,2598.6,2597.9,10.50083293]
[1751488303403,0.76923,2598.4,2598.3,0.76921]
[1751488303602,1.80237667,2598.4,2598.3,0.76921]
[1751488303803,1.80237667,2598.4,2598.3,0.96401269]
[1751488304304,1.80237667,2598.4,2598.3,0.19480269]
[1751488305410,1.80237667,2598.4,2598.3,0.96404269]
[1751488305702,1.80237667,2598.4,2598.3,0.19480269]
[1751488306198,1.80237667,2598.4,2598.3,0.96404269]
[1751488306602,1.03314667,2598.4,2598.3,0.96404269]
[1751488307103,1.80235667,2598.4,2598.3,0.96404269]
[1751488308300,1.80235667,2598.4,2598.3,0.76924]
[1751488308505,38.25835667,2598.4,2598.3,0.96404269]
[1751488308906,37.48914667,2598.4,2598.3,0.96404269]
[1751488309505,38.25835667,2598.4,2598.3,0.96404269]
[1751488310501,42.48914667,2598.4,2597.3,0.1423602]
[1751488310804,0.76934,2598.1,2598.0,0.7693]
[1751488311005,38.25648667,2598.1,2598.0,0.7693]
[1751488312000,37.48714667,2598.1,2597.5,1.92369]
[1751488312206,0.76945,2597.7,2597.6,0.76942]
[1751488312607,1.80974519,2597.7,2597.6,0.76942]
[1751488313308,0.76949,2597.6,2597.5,0.76945]
[1751488313504,0.76951,2597.5,2597.4,0.76948]
[1751488314306,1.80934891,2597.5,2597.4,0.76948]
[1751488314501,1.03983891,2597.5,2597.4,0.76948]
[1751488314701,1.03983891,2597.5,2597.4,12.66322293]
[1751488315007,0.76932,2598.1,2598.0,0.7693]
[1751488315408,0.7692,2598.5,2598.4,0.76918]
[1751488315805,13.59695319,2598.8,2598.2,1.92316]
[1751488316005,37.22317,2598.6,2598.5,0.76916]
[1751488316710,0.76917,2598.6,2598.5,0.76916]
[1751488316907,37.22417,2598.6,2598.5,0.76916]
[1751488318814,0.76921,2598.5,2598.4,0.76919]
[1751488319309,0.76913,2598.7,2598.6,0.76915]
[1751488319614,36.453,2598.7,2598.6,0.76915]
[1751488320516,37.22212,2598.7,2598.6,0.76915]
[1751488321213,36.453,2598.7,2598.6,0.76915]
[1751488321414,0.76911,2598.8,2598.7,0.76912]
[1751488321611,37.22111,2598.8,2598.7,0.76912]
[1751488321914,37.22011,2598.8,2598.7,0.76912]
[1751488325218,12.07008,2598.9,2598.8,0.76909]
[1751488325414,58.5476,2599.0,2598.9,0.76906]
[1751488325613,107.06265,2599.0,2598.9,0.76906]
[1751488325814,0.76909,2598.9,2598.8,0.76906]
[1751488326009,0.76909,2598.9,2598.8,1.6637]
[1751488326213,0.76915,2598.7,2598.6,0.76913]
[1751488327118,1.79150557,2598.7,2598.6,0.76913]
[1751488327815,0.76915,2598.6,2598.5,1.6637]
[1751488328117,1.5401,2599.0,2598.9,0.76906]
[1751488328318,1.02190439,2599.0,2598.9,0.76906]
[1751488328713,0.76895,2599.3,2599.2,0.76897]
[1751488328910,38.23030639,2599.3,2599.2,0.76897]
[1751488329108,38.6081475,2599.3,2599.2,0.76897]
[1751488329510,1.01935639,2599.3,2599.2,0.76897]
[1751488329710,1.5091,2599.6,2599.5,0.76888]
[1751488329914,3.29062521,2599.6,2599.5,0.76888]
[1751488330120,2.52175521,2599.6,2599.5,0.76888]
[1751488330315,1.5091,2599.6,2599.5,0.76888]
[1751488330812,2.27796,2599.6,2599.5,0.76888]
[1751488331012,1.89663428,2599.6,2599.3,1.6047]
[1751488331216,1.89663428,2599.6,2599.1,1.6141]
[1751488331217,38.35822,2599.5,2598.8,1.5073]
[1751488331411,0.76903,2599.0,2598.9,2.31863]
[1751488331622,0.76902,2599.1,2599.0,0.769]
[1751488332121,0.76903,2599.0,2598.9,2.31865]
[1751488332317,0.76902,2599.1,2599.0,0.769]
[1751488333519,36.436,2599.2,2599.1,0.769]
[1751488333720,1.5091,2599.6,2599.1,8.81625293]
[1751488334022,1.5091,2599.6,2599.5,0.76888]
[1751488334223,0.7689,2599.5,2599.4,0.76889]
[1751488334722,2.27797,2599.6,2599.5,0.76888]
[1751488335224,0.76892,2599.5,2599.4,0.7689]
[1751488336521,0.76894,2599.4,2599.2,1.5496]
[1751488336720,0.76891,2599.5,2599.2,1.5496]
[1751488336925,0.76894,2599.4,2599.3,0.76892]
[1751488338329,0.76891,2599.5,2599.4,0.76891]
[1751488340529,0.76897,2599.3,2599.2,0.76893]
[1751488343730,0.76891,2599.5,2599.4,0.76888]
[1751488344531,37.18791,2599.5,2599.4,0.76888]
[1751488345833,0.76891,2599.5,2599.4,0.76888]
[1751488346028,37.18791,2599.5,2599.4,0.76888]
[1751488347034,2.27797,2599.6,2599.5,0.76888]
[1751488347233,38.69397,2599.6,2599.5,0.76888]
[1751488347434,2.27797,2599.6,2599.5,0.76888]
[1751488347634,38.69397,2599.6,2599.5,0.76888]
[1751488348236,39.69076164,2599.6,2599.5,0.76888]
[1751488348437,0.76894,2599.5,2599.4,0.76889]
[1751488348637,0.76896,2599.4,2599.3,0.76891]
[1751488349326,1.92237,2599.3,2598.8,1.5073]
[1751488349531,0.76906,2599.0,2598.9,0.76903]
[1751488349735,0.76898,2599.3,2599.2,0.76895]
[1751488350633,37.18093,2599.4,2599.3,0.76894]
[1751488350835,1.76610801,2599.4,2599.3,0.76894]
[1751488351037,38.17810801,2599.4,2599.3,0.76894]
[1751488351537,1.76610801,2599.4,2599.3,0.76894]
[1751488352831,0.99717801,2599.4,2599.3,0.76894]
[1751488354742,2.27796,2599.6,2599.5,0.76888]
[1751488354944,3.27601326,2599.6,2599.5,0.76888]
[1751488359738,11.32307619,2599.6,2598.9,1.92259]
[1751488359942,4.08418257,2599.2,2599.1,0.76897]
[1751488360143,0.76901,2599.2,2599.1,0.76897]
[1751488360543,1.76489469,2599.2,2599.1,0.76897]
[1751488362049,0.76909,2598.9,2598.8,0.76905]
[1751488362548,0.76906,2599.0,2598.9,0.76903]
[1751488362738,1.76268965,2599.0,2598.9,0.76903]
[1751488366747,0.99362965,2599.0,2598.9,0.76903]
[1751488367350,38.74951,2599.1,2599.0,0.76903]
[1751488367547,0.99384458,2599.1,2599.0,0.76903]
[1751488367944,11.289,2599.5,2599.4,0.76891]
[1751488368149,12.28272983,2599.5,2599.4,0.76891]
[1751488368550,0.99372983,2599.5,2599.4,0.76891]
[1751488369255,1.76260983,2599.5,2599.4,0.76891]
[1751488369850,0.76891,2599.4,2599.3,2.30603]
[1751488370054,1.76263983,2599.4,2599.3,2.30603]
[1751488371246,0.99372983,2599.4,2598.9,3.43293]
[1751488371547,3.30386983,2599.3,2599.2,0.76897]
[1751488375353,2.53492983,2599.3,2599.2,0.76897]
[1751488377254,2.52848462,2599.3,2599.2,0.76897]
[1751488378154,3.29742462,2599.3,2599.2,0.76897]
[1751488378357,2.52848462,2599.3,2599.2,0.76897]
[1751488381158,12.7861,2599.6,2599.5,0.76888]
[1751488381356,2.49636924,2599.6,2599.5,0.76888]
[1751488381854,2.49636924,2599.6,2599.5,4.08163132]
[1751488383459,5.80912056,2599.6,2599.3,1.5245]
[1751488383660,3.31275132,2599.4,2598.8,1.92269]
[1751488383855,0.76905,2599.1,2599.0,0.76901]
[1751488384160,1.75613567,2599.1,2599.0,0.76901]
[1751488384359,0.76906,2599.0,2598.9,0.76904]
[1751488384560,2.38086,2599.0,2598.9,0.76904]
[1751488385052,2.38083,2599.0,2598.9,0.76904]
[1751488385559,4.92455132,2599.0,2598.4,1.5875]
[1751488385858,0.76915,2598.7,2598.6,0.76913]
[1751488386261,1.7562411,2598.7,2598.6,0.76913]
[1751488387657,0.76918,2598.6,2598.5,0.76916]
[1751488387958,1.7562711,2598.6,2598.5,0.76916]
[1751488388360,37.973,2598.9,2598.4,1.92303]
[1751488388556,0.98643412,2598.8,2598.7,0.76912]
[1751488388752,37.13194,2599.4,2599.3,0.76892]
[1751488388952,0.98620108,2599.4,2599.3,0.76892]
[1751488389261,2.2408,2599.5,2599.4,0.76891]
[1751488389564,2.45808969,2599.5,2599.4,0.76891]
[1751488389958,3.22696969,2599.5,2599.4,0.76891]
[1751488390161,2.45808969,2599.5,2599.4,0.76891]
[1751488391259,2.29695319,2600.1,2600.0,0.76874]
[1751488391463,0.98113057,2600.1,2599.9,6.89752154]
[1751488391662,0.76864,2600.4,2600.0,1.4818]
[1751488391863,1.5699,2600.5,2600.0,1.4818]
[1751488392063,0.76868,2600.3,2600.2,0.76867]
[1751488392262,3.49145,2600.5,2600.0,1.4818]
[1751488392465,1.5699,2600.5,2600.0,1.4818]
[1751488392767,1.5699,2600.5,2600.4,0.76862]
[1751488393364,1.5543,2600.6,2600.5,0.76859]
[1751488393566,2.32286,2600.6,2600.5,0.76859]
[1751488394060,1.5543,2600.6,2600.5,0.76859]
[1751488394264,4.98274333,2601.7,2600.7,1.92133]
[1751488394462,1.4988,2601.4,2600.4,14.69748]
[1751488394663,1.4988,2601.4,2600.6,8.44062154]
[1751488394868,0.76846,2601.0,2600.9,0.76846]
[1751488395067,0.76853,2600.8,2600.7,0.76852]
[1751488395268,0.76849,2600.9,2600.8,0.76849]
[1751488395463,0.76846,2601.0,2600.9,0.76846]
[1751488395664,6.89752154,2601.3,2600.6,1.5431]
[1751488395965,0.76853,2600.7,2600.6,1.5431]
[1751488396270,0.76854,2600.7,2600.6,0.76854]
[1751488396671,0.76854,2600.7,2600.3,1.5735]
[1751488396672,0.76856,2600.6,2600.5,0.76857]
[1751488396860,1.92121,2600.9,2600.3,2.34213]
[1751488397065,0.7686,2600.5,2600.4,0.76861]
[1751488397264,0.7686,2600.5,2599.9,1.92189]
[1751488397265,0.76867,2600.3,2599.7,10.42767154]
[1751488397465,0.76869,2600.2,2600.1,0.76869]
[1751488398065,2.38336,2600.3,2600.2,0.76868]
[1751488398365,1.6147,2600.3,2599.9,1.5735]
[1751488398567,0.76874,2600.0,2599.9,2.34224]
[1751488398764,0.76872,2600.1,2600.0,0.76871]
[1751488399669,0.76874,2600.0,2599.9,2.34225]
[1751488400765,0.76873,2600.1,2600.0,0.76872]
[1751488401165,1.6147,2600.3,2599.9,1.5735]
[1751488401166,0.76874,2600.0,2599.9,2.34225]
[1751488401666,1.9217,2600.2,2599.7,0.76879]
[1751488401972,0.76879,2599.9,2599.8,0.76877]
[1751488402670,0.76882,2599.8,2599.7,0.7688]
[1751488403171,0.76879,2599.9,2599.8,0.76877]
[1751488404664,49.31222154,2600.3,2599.8,0.76877]
[1751488404871,1.5598,2600.4,2600.3,0.76865]
[1751488405072,11.263,2600.8,2600.6,0.76854]
[1751488405274,12.03153,2600.8,2600.7,0.76853]
[1751488405469,0.7685,2600.9,2600.8,0.76847]
[1751488405669,12.0315,2600.9,2600.8,0.76847]
[1751488406169,12.03147,2600.9,2600.8,0.76847]
[1751488406569,11.263,2600.9,2600.8,0.76847]
[1751488406967,11.263,2600.9,2600.7,0.76851]
[1751488407168,2.34423,2600.8,2600.7,0.76851]
[1751488407574,0.76855,2600.7,2600.6,0.76853]
[1751488407875,0.76858,2600.6,2600.5,0.76856]
[1751488409275,0.76855,2600.7,2600.6,0.76853]
[1751488411273,2.34421,2600.8,2600.7,0.76853]
[1751488411570,2.34421,2600.8,2600.6,0.76854]
[1751488411775,0.76856,2600.7,2600.6,0.76854]
[1751488411970,2.34422,2600.8,2600.7,0.76853]
[1751488413576,1.5757,2600.8,2600.7,0.76853]
[1751488415579,2.3442,2600.8,2600.7,0.76853]
[1751488417179,0.76845,2601.1,2601.0,0.76841]
[1751488417676,0.76845,2601.1,2600.8,1.6204]
[1751488417677,0.76847,2601.0,2600.9,0.76845]
[1751488418279,1.72534743,2601.0,2600.9,0.76845]
[1751488418581,0.76847,2600.9,2600.8,0.76848]
[1751488418782,0.76846,2601.0,2600.9,0.76847]
[1751488419178,1.72530982,2601.0,2600.9,0.76847]
[1751488419873,0.7685,2600.9,2600.8,0.76848]
[1751488420176,3.28704982,2600.9,2600.8,0.76848]
[1751488421785,2.51854982,2600.9,2600.8,0.76848]
[1751488422083,2.51994943,2600.9,2600.8,0.76848]
[1751488422579,3.28841943,2600.9,2600.8,0.76848]
[1751488422783,2.51994943,2600.9,2600.8,0.76848]
[1751488423286,0.95824943,2600.9,2600.8,0.76848]
[1751488423475,11.261,2601.2,2601.1,0.76841]
[1751488423679,0.76844,2601.1,2601.0,0.76841]
[1751488423882,0.95617716,2601.1,2601.0,0.76841]
[1751488424084,12.02941,2601.2,2601.1,0.76841]
[1751488424283,12.98555327,2601.2,2601.1,0.76841]
[1751488425486,12.98455327,2601.2,2601.1,0.76841]
[1751488425990,21.03466481,2601.2,2600.3,1.5189]
[1751488426189,0.76854,2600.8,2600.7,0.7685]
[1751488426786,1.92111,2601.0,2600.5,3.50118]
[1751488426787,0.76847,2601.0,2600.9,0.76844]
[1751488426986,1.72442854,2601.0,2600.9,0.76844]
[1751488427488,12.21595854,2601.0,2600.9,0.76844]
[1751488428089,11.26,2601.0,2600.9,0.76844]
[1751488429090,12.02844,2601.0,2600.9,0.76844]
[1751488429688,12.2156003,2601.0,2600.9,0.76844]
[1751488429884,12.02844,2601.0,2600.9,0.76844]
[1751488430488,0.95572685,2601.0,2600.9,0.76844]
[1751488430785,2.39233,2601.1,2601.0,0.76844]
[1751488430786,2.39231,2601.1,2601.0,0.76844]
[1751488430990,3.34802077,2601.1,2601.0,0.76844]
[1751488431193,2.57961077,2601.1,2601.0,0.76844]
[1751488431392,14.60702077,2601.1,2601.0,0.76844]
[1751488431788,13.83861077,2601.1,2601.0,0.76844]
[1751488431989,0.95571077,2601.1,2601.0,0.76844]
[1751488433195,1.72412077,2601.1,2601.0,0.76844]
[1751488435296,49.27112077,2601.1,2601.0,0.76844]
[1751488435496,49.27012077,2601.1,2601.0,0.76844]
[1751488436101,48.50171077,2601.1,2601.0,0.76844]
[1751488436399,49.27012077,2601.1,2601.0,0.76844]
[1751488437598,48.50171077,2601.1,2601.0,0.76844]
[1751488437795,49.27012077,2601.1,2601.0,0.76844]
[1751488439597,49.27012077,2601.1,2600.8,1.5149]
[1751488439598,0.76847,2601.0,2600.9,0.76845]
[1751488439896,2.46161077,2601.0,2600.9,0.76845]
[1751488440096,0.95571077,2601.0,2600.9,0.76845]
[1751488440294,48.49733847,2601.1,2601.0,0.76844]
[1751488440798,49.26574847,2601.1,2601.0,0.76844]
[1751488441000,49.26575351,2601.1,2601.0,0.76844]
[1751488441199,12.97575351,2601.1,2601.0,0.76844]
[1751488441400,37.24534351,2601.1,2601.0,0.76844]
[1751488441796,37.24434351,2601.1,2601.0,2.29204]
[1751488442200,38.01275351,2601.1,2601.0,2.29204]
[1751488443201,49.26175351,2601.1,2601.0,2.29204]
[1751488443995,1.72575351,2601.1,2601.0,2.29204]
[1751488444204,0.95734351,2601.1,2601.0,2.29204]
[1751488444398,48.49134351,2601.1,2601.0,2.29204]
[1751488445097,49.25975351,2601.1,2601.0,2.29204]
[1751488445296,48.49134351,2601.1,2601.0,2.29204]
[1751488445498,0.12572351,2601.1,2601.0,2.29204]
[1751488445698,55.377,2601.4,2601.3,0.76835]
[1751488445900,55.377,2601.4,2601.3,4.07834154]
[1751488447698,55.377,2601.4,2601.3,0.76835]
[1751488448004,55.377,2601.4,2600.4,1.92155]
[1751488448005,0.76855,2600.7,2600.4,1.92155]
[1751488448301,0.76856,2600.7,2600.6,0.76853]
[1751488448497,0.7686,2600.6,2600.5,0.76857]
[1751488448701,0.76862,2600.5,2600.4,0.7686]
[1751488448902,0.76862,2600.5,2599.7,6.79573239]
[1751488448903,1.92161,2600.4,2599.7,6.79573239]
[1751488449104,47.524,2600.3,2600.0,0.76873]
[1751488449304,0.76875,2600.0,2599.9,0.76874]
[1751488449505,36.275,2600.0,2599.9,0.76874]
[1751488450906,36.275,2600.0,2599.7,1.4734]
[1751488451107,1.5817,2599.9,2599.8,0.7688]
[1751488451404,2.35047,2599.9,2599.8,0.7688]
[1751488451605,1.5817,2599.9,2599.8,0.7688]
[1751488451903,0.76866,2600.3,2599.7,3.39546]
[1751488452102,49.1087,2600.2,2600.1,0.76871]
[1751488453405,49.87738,2600.2,2600.1,0.76871]
[1751488453707,1.5817,2600.2,2600.1,0.76871]
[1751488453907,43.15678,2600.6,2600.5,0.76859]
[1751488454208,49.88178,2600.6,2600.5,0.76859]
[1751488454408,0.76861,2600.5,2600.4,0.7686]
[1751488454609,49.88178,2600.6,2600.5,0.76859]
[1751488455511,13.60778,2600.6,2600.5,0.76859]
[1751488455714,49.88178,2600.6,2600.5,0.76859]
[1751488456008,13.60778,2600.6,2600.5,0.76859]
[1751488456212,49.88178,2600.6,2600.5,0.76859]
[1751488457112,49.88178,2600.6,2600.2,1.6019]
[1751488457113,11.252,2600.9,2600.6,0.76856]
[1751488457316,11.252,2600.9,2600.8,0.7685]
[1751488457511,12.96861889,2600.9,2600.8,0.7685]
[1751488457812,48.47214889,2600.9,2600.8,0.7685]
[1751488458215,0.94814889,2600.9,2600.8,0.7685]
[1751488458411,48.47214889,2600.9,2600.8,0.7685]
[1751488458613,49.24061889,2600.9,2600.8,0.7685]
[1751488460115,0.7685,2600.8,2600.7,2.3576]
[1751488460313,1.71664889,2600.8,2600.7,2.3576]
[1751488461009,0.76856,2600.6,2600.5,0.76856]
[1751488461715,1.71661716,2600.6,2600.5,0.76856]
[1751488462316,0.94805716,2600.6,2600.5,0.76856]
[1751488462718,37.03553,2600.7,2600.6,0.76856]
[1751488462913,37.98359222,2600.7,2600.6,0.76856]
[1751488463113,48.46606222,2600.7,2600.6,0.76856]
[1751488463416,0.94806222,2600.7,2600.6,0.76856]
[1751488463813,49.882,2600.8,2600.7,0.76853]
[1751488464008,50.82964368,2600.8,2600.7,0.76853]
[1751488464208,50.06114368,2600.8,2600.7,0.76853]
[1751488464411,2.54514368,2600.8,2600.7,0.76853]
[1751488464616,50.04614368,2600.8,2600.7,0.76853]
[1751488464817,48.44864368,2600.8,2600.7,0.76853]
[1751488465317,12.18664368,2600.8,2600.7,0.76853]
[1751488466617,0.94764368,2600.8,2600.7,0.76853]
[1751488468618,1.71614368,2600.8,2600.7,0.76853]
[1751488469118,0.76855,2600.7,2600.6,0.76853]
[1751488469321,1.71619368,2600.7,2600.6,0.76853]
[1751488472813,0.94764368,2600.7,2600.6,0.76853]
[1751488473013,48.43564368,2600.7,2600.6,0.76853]
[1751488473216,12.18664368,2600.7,2600.6,0.76853]
[1751488474115,0.94764368,2600.7,2600.6,0.76853]
[1751488474320,0.94843033,2600.8,2600.5,3.46514]
[1751488474522,0.94843033,2600.7,2600.6,0.76856]